bitfinex/quotes_SOLUSD_20251216
["timestamp","ask_amount","ask_price","bid_price","bid_amount"]
[1765882796319,8.47503871,128.62,128.6,8.52]
[1765882796616,12.82848023,128.62,128.6,8.52]
[1765882796817,12.12848023,128.62,128.6,8.52]
[1765882797311,12.82848023,128.62,128.6,8.52]
[1765882797614,8.47503871,128.62,128.6,8.52]
[1765882797792,12.82848023,128.62,128.6,8.52]
[1765882798996,8.47503871,128.62,128.6,8.52]
[1765882799203,12.82848023,128.62,128.6,8.52]
[1765882800198,13.0470912,128.64,128.6,8.52]
[1765882800199,7.77409517,128.64,128.6,16.29601417]
[1765882800399,5.05344152,128.66,128.63,9.51994492]
[1765882800625,4.35344152,128.68,128.65,8.80994492]
[1765882800797,0.7,128.68,128.65,8.80994492]
[1765882801123,5.05344152,128.68,128.66,8.52]
[1765882801321,5.05344152,128.67,128.66,8.52]
[1765882801631,7.77181938,128.67,128.66,8.52]
[1765882801815,8.46944786,128.71,128.68,8.80994492]
[1765882802006,7.76944786,128.71,128.69,9.23]
[1765882802400,7.76900764,128.72,128.69,9.23]
[1765882802595,4.35344152,128.71,128.69,8.52]
[1765882802800,7.76900764,128.72,128.69,8.52]
[1765882803002,8.4101258,128.74,128.71,0.71]
[1765882803226,12.121199,128.74,128.7,9.51994492]
[1765882803529,0.67,128.72,128.7,8.80994492]
[1765882803828,12.79236026,128.72,128.7,8.80994492]
[1765882804132,0.67,128.7,128.69,8.52]
[1765882804431,5.02344152,128.7,128.69,8.52]
[1765882804637,0.67,128.7,128.69,8.52]
[1765882804798,5.02344152,128.71,128.69,8.52]
[1765882805000,0.67,128.71,128.69,8.52]
[1765882805217,5.02344152,128.71,128.69,8.52]
[1765882805623,12.79236026,128.72,128.69,8.52]
[1765882805824,7.76891874,128.72,128.69,9.19]
[1765882806067,7.76891874,128.72,128.69,16.9606072]
[1765882806339,0.67,128.69,128.64,13.7170912]
[1765882806542,4.35344152,128.7,128.62,8.52]
[1765882806543,5.02344152,128.65,128.62,8.52]
[1765882806829,5.02344152,128.63,128.62,8.52]
[1765882807203,12.85344152,128.7,128.62,8.52]
[1765882807407,0.67,128.68,128.63,4.35344152]
[1765882807609,0.67,128.68,128.65,16.5827504]
[1765882807803,7.77106091,128.69,128.66,9.19]
[1765882808035,5.02344152,128.68,128.66,8.52]
[1765882808241,7.77106091,128.69,128.66,8.52]
[1765882808550,12.79450243,128.69,128.66,8.52]
[1765882808709,0.67,128.71,128.67,9.47994492]
[1765882808909,0.67,128.71,128.67,8.80994492]
[1765882809119,4.35344152,128.7,128.67,9.47994492]
[1765882809317,4.35344152,128.71,128.68,0.67]
[1765882809640,19.89734029,128.71,128.68,0.67]
[1765882809844,20.56687057,128.72,128.69,17.32994492]
[1765882811447,15.90118323,128.72,128.69,17.32994492]
[1765882812048,8.43905261,128.72,128.69,17.32994492]
[1765882812222,15.90118323,128.72,128.69,17.32994492]
[1765882812552,15.23118323,128.72,128.69,17.99994492]
[1765882812732,7.76905261,128.72,128.69,17.99994492]
[1765882814251,8.43905261,128.72,128.69,17.99994492]
[1765882815129,0.67,128.75,128.71,16.94207554]
[1765882815344,0.67,128.74,128.72,8.52]
[1765882815547,0.67,128.72,128.71,8.52]
[1765882815750,7.46213062,128.75,128.72,8.80994492]
[1765882815952,8.43723384,128.75,128.72,16.94207554]
[1765882816452,34.64684018,128.75,128.67,31.04703612]
[1765882816657,0.67,128.72,128.68,24.42312899]
[1765882816953,0.67,128.69,128.66,8.80994492]
[1765882817143,0.67,128.69,128.67,8.52]
[1765882817460,8.44101308,128.69,128.67,8.52]
[1765882818153,8.44023809,128.7,128.67,8.52]
[1765882818535,0.67,128.69,128.67,8.52]
[1765882819049,15.90171655,128.71,128.67,9.19]
[1765882819246,0.67,128.7,128.67,8.52]
[1765882819433,0.67,128.69,128.67,8.52]
[1765882820055,15.90167629,128.71,128.67,16.96165358]
[1765882820260,15.90167629,128.71,128.67,24.4237842]
[1765882820462,8.43954567,128.71,128.67,24.4237842]
[1765882821661,8.43954567,128.71,128.68,0.67]
[1765882821856,8.43954567,128.71,128.67,24.4237842]
[1765882822750,8.43954567,128.71,128.68,24.71323623]
[1765882822937,7.76954567,128.71,128.68,24.71323623]
[1765882823247,8.43954567,128.71,128.68,16.58110561]
[1765882823760,8.43954567,128.71,128.68,17.25110561]
[1765882824060,8.43954567,128.71,128.68,16.58110561]
[1765882824871,8.43954567,128.71,128.69,8.52]
[1765882827450,15.90167629,128.71,128.69,8.52]
[1765882829440,11.22582852,128.71,128.69,8.52]
[1765882830548,10.55582852,128.71,128.69,9.19]
[1765882830846,10.55582852,128.71,128.69,8.52]
[1765882831246,11.26582852,128.71,128.69,8.52]
[1765882832456,8.47954567,128.71,128.69,8.52]
[1765882832656,11.26582852,128.71,128.69,8.52]
[1765882833281,19.42270205,128.72,128.69,8.52]
[1765882833483,3.44628285,128.7,128.69,8.52]
[1765882833782,0.66,128.7,128.69,8.52]
[1765882834094,3.44628285,128.7,128.69,8.52]
[1765882834385,3.44628285,128.7,128.68,8.52]
[1765882835372,7.77061154,128.69,128.68,8.52]
[1765882835977,11.21660969,128.7,128.68,8.52]
[1765882836590,7.77032684,128.7,128.68,9.21]
[1765882836759,7.77032684,128.7,128.68,8.52]
[1765882836966,8.43032684,128.7,128.68,8.52]
[1765882837659,3.44628285,128.69,128.68,8.52]
[1765882838293,0.66,128.69,128.68,8.52]
[1765882838465,3.44628285,128.69,128.68,8.52]
[1765882839399,2.78628285,128.69,128.65,8.80994492]
[1765882839584,27.19534626,128.7,128.65,8.52]
[1765882839585,3.44628285,128.66,128.65,8.52]
[1765882839761,2.78628285,128.66,128.65,8.52]
[1765882839969,11.21810223,128.67,128.65,8.52]
[1765882841384,10.55810223,128.67,128.65,8.52]
[1765882841686,8.43181938,128.67,128.65,8.52]
[1765882841871,11.21810223,128.67,128.65,8.52]
[1765882842071,10.55810223,128.67,128.65,8.52]
[1765882842391,0.66,128.65,128.57,8.80994492]
[1765882842694,0.66,128.65,128.62,0.69]
[1765882842695,3.44628285,128.65,128.62,0.69]
[1765882842876,3.44628285,128.66,128.63,0.69]
[1765882843606,7.77302759,128.65,128.62,8.52]
[1765882843884,11.21931044,128.65,128.63,8.52]
[1765882844090,11.21931044,128.65,128.61,9.49994492]
[1765882844267,11.21931044,128.65,128.62,8.52]
[1765882844467,10.55931044,128.65,128.62,9.21]
[1765882844675,0.66,128.62,128.58,0.89]
[1765882844875,0.66,128.62,128.59,17.32994492]
[1765882844876,3.44628285,128.62,128.59,17.32994492]
[1765882845191,0.66,128.61,128.59,17.32994492]
[1765882845488,3.44628285,128.6,128.58,0.2]
[1765882845789,2.78628285,128.59,128.58,0.2]
[1765882845964,3.44628285,128.59,128.58,0.2]
[1765882847358,16.49337405,128.59,128.58,0.2]
[1765882847658,24.27002853,128.59,128.58,0.2]
[1765882848685,24.27002853,128.59,128.58,1e-08]
[1765882849488,21.48374568,128.59,128.58,1e-08]
[1765882849695,24.27002853,128.59,128.58,1e-08]
[1765882850688,27.05631138,128.59,128.58,1e-08]
[1765882851068,35.57631138,128.59,128.58,1e-08]
[1765882851263,21.48374568,128.59,128.58,1e-08]
[1765882851469,24.27002853,128.59,128.58,1e-08]
[1765882851697,24.27579708,128.59,128.58,1e-08]
[1765882852487,20.82374568,128.59,128.58,1e-08]
[1765882853071,7.77665448,128.59,128.58,1e-08]
[1765882853692,11.22870588,128.59,128.58,1e-08]
[1765882857484,19.74870588,128.59,128.58,1e-08]
[1765882859982,10.56870588,128.59,128.58,1e-08]
[1765882860297,11.22870588,128.59,128.58,1e-08]
[1765882861070,7.77665448,128.59,128.58,1e-08]
[1765882861288,7.77665448,128.59,128.58,0.69000001]
[1765882861685,7.77665448,128.59,128.58,1e-08]
[1765882862511,11.22870588,128.59,128.58,1e-08]
[1765882862692,10.56870588,128.59,128.58,1e-08]
[1765882863486,21.88075728,128.59,128.58,1e-08]
[1765882864214,25.92019113,128.59,128.58,1e-08]
[1765882864602,27.65523093,128.59,128.58,1e-08]
[1765882865612,24.86317953,128.59,128.58,1e-08]
[1765882865913,27.2126673,128.62,128.59,0.71]
[1765882866102,30.0047187,128.62,128.59,0.71]
[1765882866284,30.6947187,128.62,128.58,0.71000001]
[1765882867103,0.69,128.58,128.54,0.2]
[1765882867321,3.4820514,128.58,128.54,0.2]
[1765882867497,13.0470912,128.57,128.54,0.91]
[1765882867699,15.8391426,128.57,128.54,0.91]
[1765882868139,7.77907429,128.55,128.54,0.2]
[1765882869207,10.57112569,128.55,128.54,0.2]
[1765882869514,15.95144108,128.55,128.54,0.2]
[1765882870855,28.99853228,128.55,128.54,0.2]
[1765882871359,21.51616549,128.55,128.54,0.2]
[1765882871546,28.99853228,128.55,128.54,0.2]
[1765882873532,33.67781722,128.55,128.54,0.2]
[1765882875433,21.51616549,128.55,128.54,0.2]
[1765882875633,33.67781722,128.55,128.54,0.2]
[1765882877457,19.44247782,128.59,128.55,0.71]
[1765882877642,7.77725929,128.58,128.55,0.71]
[1765882877839,12.16165173,128.57,128.54,0.91]
[1765882878565,19.94012092,128.56,128.54,0.91]
[1765882878975,7.77846919,128.56,128.54,0.91]
[1765882879274,19.94012092,128.56,128.54,0.2]
[1765882879463,19.94012092,128.56,128.54,0.91]
[1765882879634,7.77796363,128.57,128.55,0.71]
[1765882880234,19.93961536,128.57,128.55,0.71]
[1765882881150,7.77796363,128.57,128.55,0.71]
[1765882882263,19.93902734,128.58,128.55,0.71]
[1765882882561,7.77737561,128.58,128.55,0.71]
[1765882883143,7.77695077,128.59,128.56,12.16165173]
[1765882883358,7.77695077,128.59,128.57,0.71]
[1765882884161,7.77695077,128.59,128.55,8.80994492]
[1765882884367,19.9386025,128.59,128.56,0.71]
[1765882884543,12.16165173,128.58,128.56,0.71]
[1765882884741,27.21858697,128.59,128.56,0.71]
[1765882884742,39.3802387,128.59,128.56,0.71]
[1765882884961,19.9372902,128.61,128.58,0.71]
[1765882886485,20.6272902,128.61,128.58,0.71]
[1765882887666,19.9372902,128.61,128.58,0.71]
[1765882887869,19.93649234,128.62,128.59,0.71]
[1765882888381,19.93649234,128.62,128.58,8.52]
[1765882888382,20.62649234,128.62,128.58,8.52]
[1765882888555,20.62649234,128.62,128.59,0.71]
[1765882889258,12.85165173,128.61,128.58,8.52]
[1765882889465,12.85165173,128.6,128.58,8.52]
[1765882889642,12.16165173,128.6,128.58,8.52]
[1765882889842,12.16165173,128.6,128.58,0.71]
[1765882890051,27.90194214,128.62,128.58,0.71]
[1765882890052,12.85165173,128.61,128.58,0.71]
[1765882890648,7.77484061,128.62,128.58,7.7772541]
[1765882890860,7.77484061,128.62,128.59,0.71]
[1765882891062,37.02200852,128.63,128.59,0.71]
[1765882891553,37.71200852,128.63,128.59,0.71]
[1765882891859,37.71200852,128.63,128.6,8.52]
[1765882894475,0.66,128.6,128.54,0.2]
[1765882894780,12.16165173,128.58,128.55,18.03994492]
[1765882894949,12.16165173,128.58,128.56,0.71]
[1765882895146,25.86874293,128.6,128.56,0.71]
[1765882895686,19.93748166,128.61,128.58,0.71]
[1765882896064,19.93748166,128.61,128.58,9.23]
[1765882896265,7.77582993,128.61,128.58,9.23]
[1765882896453,19.93748166,128.61,128.58,9.23]
[1765882896965,20.59748166,128.61,128.58,8.52]
[1765882897156,12.16165173,128.59,128.58,8.52]
[1765882897861,12.82165173,128.59,128.58,8.52]
[1765882898175,12.82165173,128.59,128.56,8.80994492]
[1765882898176,12.16165173,128.59,128.54,0.91]
[1765882898390,12.82165173,128.58,128.55,8.52]
[1765882898694,12.82165173,128.58,128.55,9.23]
[1765882898695,12.16165173,128.58,128.55,9.23]
[1765882898850,7.77786419,128.57,128.55,9.23]
[1765882899048,7.77786419,128.57,128.55,8.52]
[1765882899248,20.59951592,128.57,128.55,8.52]
[1765882899479,19.93951592,128.57,128.55,8.52]
[1765882900590,19.93951592,128.57,128.55,9.23]
[1765882900898,12.16165173,128.58,128.56,0.71]
[1765882901071,7.77665448,128.59,128.56,8.80994492]
[1765882901275,7.77665448,128.59,128.57,0.71]
[1765882901992,7.77665448,128.59,128.56,9.51994492]
[1765882902196,7.77665448,128.59,128.57,0.71]
[1765882902378,7.77665448,128.59,128.58,9.23]
[1765882902698,7.77604976,128.6,128.58,8.52]
[1765882904090,19.93770149,128.6,128.58,8.52]
[1765882905189,20.59770149,128.6,128.58,8.52]
[1765882905387,7.77604976,128.6,128.58,8.52]
[1765882905861,19.93770149,128.6,128.58,8.52]
[1765882907878,20.59770149,128.6,128.58,8.52]
[1765882908801,20.59830621,128.59,128.58,8.52]
[1765882910216,0.66,128.58,128.54,9.71994492]
[1765882910379,12.16165173,128.56,128.54,9.43]
[1765882910703,19.94044154,128.56,128.54,9.43]
[1765882911231,19.94044154,128.56,128.54,0.91]
[1765882911413,12.14253487,128.56,128.54,9.43]
[1765882911605,12.14253487,128.56,128.54,0.91]
[1765882911813,12.80253487,128.56,128.54,8.72]
[1765882911984,4.36374506,128.55,128.54,8.72]
[1765882912819,7.77907429,128.55,128.54,8.72]
[1765882913110,12.14242796,128.56,128.54,9.43]
[1765882914516,4.36374506,128.56,128.54,9.43]
[1765882914812,4.36374506,128.56,128.54,8.72]
[1765882915319,12.80274172,128.56,128.54,8.72]
[1765882916524,12.14274172,128.56,128.54,9.43]
[1765882916930,7.77805104,128.57,128.55,0.71]
[1765882917216,12.80106422,128.58,128.55,0.71]
[1765882917790,12.14106422,128.58,128.55,0.71]
[1765882917995,12.80106422,128.58,128.55,0.71]
[1765882918736,12.80106422,128.58,128.55,0.63099363]
[1765882919420,12.14106422,128.58,128.55,0.63099363]
[1765882919625,7.77688827,128.59,128.56,8.80994492]
[1765882919814,7.77688827,128.59,128.57,8.52]
[1765882920793,12.80063333,128.59,128.57,8.52]
[1765882920999,12.79901061,128.59,128.57,8.52]
[1765882921394,7.77688827,128.59,128.57,9.23]
[1765882921603,12.13901061,128.59,128.57,9.23]
[1765882922118,12.13901061,128.59,128.57,8.52]
[1765882922287,5.02212234,128.58,128.57,8.52]
[1765882922485,4.36212234,128.58,128.57,8.52]
[1765882922907,12.13938163,128.58,128.57,8.52]
[1765882923109,12.13938163,128.58,128.55,0.71]
[1765882923321,12.13938163,128.58,128.54,25.30944782]
[1765882923322,0.66,128.55,128.54,0.2]
[1765882923529,4.36212234,128.55,128.54,0.2]
[1765882924528,5.07212234,128.56,128.54,0.2]
[1765882924705,4.36212234,128.55,128.54,0.2]
[1765882925529,12.1411528,128.56,128.54,0.2]
[1765882926114,12.14018811,128.57,128.54,9.66994492]
[1765882926314,12.85018811,128.57,128.54,9.66994492]
[1765882926898,12.85018811,128.57,128.54,9.00994492]
[1765882926899,12.14018811,128.57,128.54,9.00994492]
[1765882927105,12.14018811,128.57,128.55,0.66]
[1765882927399,12.13950798,128.58,128.55,0.66]
[1765882927615,7.77738564,128.58,128.57,0.66]
[1765882927815,7.77738564,128.58,128.56,9.18]
[1765882928847,12.13893367,128.59,128.56,9.18]
[1765882930799,4.04186749,128.61,128.58,0.66]
[1765882930999,141.36271288,128.66,128.57,8.80994492]
[1765882931000,4.36212234,128.62,128.59,9.18]
[1765882931248,7.77551969,128.61,128.59,8.52]
[1765882931400,12.13764203,128.61,128.59,8.52]
[1765882931806,12.84764203,128.61,128.59,8.52]
[1765882932007,4.36212234,128.6,128.59,8.52]
[1765882932227,5.07212234,128.6,128.58,8.52]
[1765882932407,4.36212234,128.6,128.58,8.52]
[1765882932614,12.13764203,128.61,128.58,9.18]
[1765882932826,7.77551969,128.61,128.58,9.18]
[1765882933027,12.13764203,128.61,128.58,9.18]
[1765882933529,2.79062166,128.61,128.58,16.95716915]
[1765882933764,10.56609043,128.61,128.58,9.18]
[1765882934522,11.27609043,128.61,128.58,9.18]
[1765882935444,8.48546877,128.61,128.58,9.18]
[1765882935627,11.27609043,128.61,128.58,9.18]
[1765882936230,2.79062166,128.6,128.58,8.52]
[1765882936447,7.77546877,128.61,128.58,8.52]
[1765882936448,3.50062166,128.59,128.58,8.52]
[1765882936819,2.79062166,128.59,128.57,61.9]
[1765882937039,2.79062166,128.59,128.57,70.42]
[1765882938029,11.27763666,128.59,128.57,70.42]
[1765882938252,11.27763666,128.59,128.57,8.52]
[1765882938456,11.27763666,128.59,128.54,9.00994492]
[1765882938457,0.71,128.57,128.54,9.00994492]
[1765882938643,0.71,128.57,128.55,8.52]
[1765882939022,0.71,128.57,128.54,0.2]
[1765882939851,2.79062166,128.55,128.54,0.2]
[1765882940160,10.56969595,128.55,128.54,0.2]
[1765882941050,11.27969595,128.55,128.54,0.2]
[1765882944940,24.32678715,128.55,128.54,1e-08]
[1765882949234,13.0470912,128.52,128.47,0.86]
[1765882949439,2.79062166,128.49,128.47,8.72]
[1765882949751,0.71,128.51,128.47,0.86]
[1765882949928,2.79062166,128.48,128.47,0.86]
[1765882950130,2.79062166,128.48,128.47,0.2]
[1765882950653,11.28393423,128.48,128.47,0.2]
[1765882952258,14.07455589,128.48,128.47,0.2]
[1765882952462,27.12225294,128.47,128.46,0.2]
[1765882953262,21.54100962,128.47,128.46,0.2]
[1765882953448,24.28163128,128.47,128.46,0.2]
[1765882954936,27.07225294,128.47,128.46,0.2]
[1765882955336,24.28163128,128.47,128.46,0.2]
[1765882955856,27.07225294,128.47,128.46,0.2]
[1765882956360,11.23454008,128.47,128.46,0.2]
[1765882956958,10.57454008,128.47,128.46,0.2]
[1765882957160,24.34163128,128.47,128.46,0.2]
[1765882958545,27.13225294,128.47,128.46,0.2]
[1765882958742,0.72,128.46,128.45,0.2]
[1765882959056,14.08576768,128.46,128.45,0.2]
[1765882961562,12.55298814,128.46,128.45,0.2]
[1765882961766,18.13423146,128.46,128.45,0.2]
[1765882963069,14.6236098,128.46,128.45,0.2]
[1765882963429,18.13423146,128.46,128.45,1e-08]
[1765882964651,12.55298814,128.46,128.45,1e-08]
[1765882964858,14.6236098,128.46,128.45,1e-08]
[1765882965260,11.83298814,128.46,128.45,1e-08]
[1765882965441,14.6236098,128.46,128.45,1e-08]
[1765882966746,18.13423146,128.46,128.45,1e-08]
[1765882970648,14.6236098,128.46,128.45,1e-08]
[1765882970847,11.83298814,128.46,128.45,1e-08]
[1765882971047,14.6236098,128.46,128.45,1e-08]
[1765882972276,15.3436098,128.46,128.45,1e-08]
[1765882973355,14.6236098,128.46,128.45,1e-08]
[1765882973666,4.04846378,128.46,128.45,0.67000001]
[1765882973866,2.79062166,128.46,128.45,1e-08]
[1765882974069,10.57514602,128.46,128.45,1e-08]
[1765882974276,8.50452436,128.46,128.45,1e-08]
[1765882974458,11.29514602,128.46,128.45,1e-08]
[1765882975570,14.08576768,128.46,128.45,1e-08]
[1765882976070,11.29514602,128.46,128.45,1e-08]
[1765882976405,13.0470912,128.43,128.42,0.2]
[1765882976674,13.0470912,128.43,128.42,0.87]
[1765882976879,15.83771286,128.43,128.42,0.2]
[1765882977246,23.62405561,128.43,128.42,0.2]
[1765882977980,24.34405561,128.43,128.42,0.2]
[1765882978156,23.62405561,128.43,128.41,0.2]
[1765882978349,3.51062166,128.42,128.41,0.2]
[1765882979068,13.7670912,128.39,128.38,1e-08]
[1765882979270,0.72,128.38,128.32,0.87]
[1765882979573,2.79062166,128.33,128.32,0.87]
[1765882980274,10.58303185,128.33,128.32,0.2]
[1765882980480,0.72,128.32,128.31,0.2]
[1765882980690,3.51062166,128.32,128.31,0.2]
[1765882980849,0.72,128.29,128.25,0.67]
[1765882981049,0.72,128.29,128.23,2.52]
[1765882981050,13.7670912,128.28,128.23,0.67]
[1765882981348,7.51728998,128.26,128.23,0.67]
[1765882981545,13.0470912,128.28,128.23,7.79828311]
[1765882981751,7.79241019,128.33,128.26,7.51728998]
[1765882981945,20.83950139,128.33,128.28,0.67]
[1765882982377,20.83950139,128.33,128.3,0.67]
[1765882982590,15.30895304,128.35,128.31,8.80994492]
[1765882982792,15.30895304,128.35,128.32,0.67]
[1765882982994,15.30895304,128.35,128.31,8.80994492]
[1765882982995,7.79052317,128.37,128.33,8.80994492]
[1765882983173,15.30781315,128.37,128.34,0.67]
[1765882983495,7.78937367,128.39,128.33,24.8672349]
[1765882983694,0.99999999,128.47,128.33,24.8672349]
[1765882983695,9.52994492,128.45,128.38,0.71]
[1765882983992,0.72,128.44,128.38,0.71]
[1765882984180,7.51728998,128.43,128.39,8.80994492]
[1765882984379,15.30393588,128.43,128.4,0.71]
[1765882985169,7.51728998,128.42,128.39,0.71]
[1765882985376,15.30393588,128.43,128.4,0.71]
[1765882985783,7.7866459,128.43,128.4,0.71]
[1765882986694,15.30393588,128.43,128.4,0.71]
[1765882987262,7.78573653,128.44,128.4,0.71]
[1765882987658,7.51728998,128.43,128.4,0.71]
[1765882988294,7.51728998,128.42,128.39,0.71]
[1765882988459,7.51728998,128.42,128.39,9.25]
[1765882988665,7.51728998,128.42,128.4,0.71]
[1765882988865,27.25007785,128.44,128.4,0.71]
[1765882988866,7.78573653,128.44,128.4,0.71]
[1765882989076,7.51728998,128.43,128.4,0.71]
[1765882989595,13.0470912,128.45,128.41,0.71]
[1765882989596,20.83238199,128.45,128.41,0.71]
[1765882989811,15.3018456,128.46,128.42,0.71]
[1765882990101,7.78455562,128.46,128.42,0.71]
[1765882990299,7.51728998,128.47,128.43,8.80994492]
[1765882990300,15.27576793,128.47,128.43,8.80994492]
[1765882990594,7.49173039,128.47,128.44,9.25]
[1765882990805,13.0470912,128.48,128.45,0.71]
[1765882990806,7.49173039,128.48,128.45,0.71]
[1765882991172,32.36847534,128.49,128.45,0.71]
[1765882991368,19.32138414,128.49,128.45,0.71]
[1765882991975,32.36847534,128.49,128.45,0.71]
[1765882992386,7.49173039,128.48,128.45,0.71]
[1765882992581,24.87674495,128.49,128.45,0.71]
[1765882992790,7.49173039,128.48,128.45,0.71]
[1765882993103,7.49173039,128.47,128.44,9.25]
[1765882993484,7.49173039,128.48,128.45,0.71]
[1765882994069,15.27518946,128.48,128.45,0.71]
[1765882994887,7.49173039,128.47,128.45,0.71]
[1765882995485,19.95595682,128.48,128.45,0.71]
[1765883000205,19.95643651,128.47,128.45,0.71]
[1765883000412,12.17249775,128.48,128.45,0.71]
[1765883001382,24.87678147,128.49,128.45,9.25]
[1765883001383,12.17249775,128.47,128.45,9.25]
[1765883001596,12.17249775,128.47,128.45,8.54]
[1765883001792,12.17249775,128.48,128.46,0.71]
[1765883002097,12.17249775,128.48,128.45,9.25]
[1765883002098,19.95601434,128.48,128.45,9.25]
[1765883002283,12.17249775,128.48,128.45,9.25]
[1765883003527,19.95598895,128.48,128.45,9.25]
[1765883005339,7.7834912,128.48,128.45,8.54]
[1765883005504,12.17249775,128.47,128.45,8.54]
[1765883005837,12.89249775,128.46,128.41,8.80994492]
[1765883006005,12.17249775,128.44,128.42,9.25]
[1765883006412,12.17249775,128.44,128.42,0.71]
[1765883006626,12.17249775,128.44,128.42,9.25]
[1765883006935,19.95836669,128.44,128.42,9.25]
[1765883007303,0.72,128.43,128.42,8.54]
[1765883007614,0.72,128.42,128.39,0.71]
[1765883007924,12.17249775,128.42,128.39,0.71]
[1765883009226,12.17249775,128.41,128.39,0.71]
[1765883009828,7.78586488,128.44,128.41,0.71]
[1765883010034,12.17249775,128.43,128.41,0.71]
[1765883010199,12.17249775,128.42,128.41,0.71]
[1765883010399,7.78586488,128.44,128.41,0.71]
[1765883010600,12.17249775,128.43,128.41,0.71]
[1765883011209,19.9591058,128.43,128.41,0.71]
[1765883011408,12.17249775,128.42,128.41,0.71]
[1765883012510,12.17249775,128.42,128.38,8.54]
[1765883012812,12.17249775,128.42,128.41,0.71]
[1765883013128,12.17249775,128.42,128.4,0.71]
[1765883013299,12.17249775,128.41,128.39,0.71]
[1765883013623,12.17249775,128.42,128.4,0.66]
[1765883014327,19.95956042,128.42,128.4,0.66]
[1765883014831,12.17249775,128.42,128.4,0.66]
[1765883015935,20.83362176,128.43,128.4,0.66]
[1765883016114,12.17249775,128.42,128.4,0.66]
[1765883016819,20.83362176,128.43,128.4,0.66]
[1765883017032,38.91148322,128.5,128.43,8.80994492]
[1765883017234,0.67,128.49,128.45,0.66]
[1765883017438,12.17249775,128.48,128.45,0.66]
[1765883018132,7.782881,128.49,128.46,0.66]
[1765883018435,19.95537875,128.49,128.46,0.66]
[1765883018820,12.17249775,128.48,128.46,0.66]
[1765883019339,7.782881,128.49,128.46,0.66]
[1765883019834,19.95537875,128.49,128.46,0.66]
[1765883020035,12.17249775,128.48,128.46,0.66]
[1765883020434,7.782881,128.49,128.46,0.66]
[1765883020639,12.17249775,128.48,128.46,0.66]
[1765883022137,19.95616776,128.48,128.45,8.80994492]
[1765883022338,7.78367001,128.48,128.46,0.66]
[1765883022637,19.95616776,128.48,128.46,0.66]
[1765883025443,4.36924853,128.48,128.46,0.66]
[1765883026633,7.78270682,128.49,128.47,0.66]
[1765883027147,4.36924853,128.48,128.47,8.54]
[1765883027524,12.1525611,128.48,128.47,8.54]
[1765883028043,4.36924853,128.49,128.47,9.2]
[1765883028240,13.0470912,128.5,128.47,9.2]
[1765883028425,4.36924853,128.49,128.47,8.54]
[1765883028829,4.36924853,128.49,128.47,9.2]
[1765883029236,4.36924853,128.49,128.48,0.66]
[1765883029439,4.36924853,128.49,128.47,8.54]
[1765883029628,4.36924853,128.49,128.47,9.2]
[1765883029821,25.8685783,128.5,128.47,9.2]
[1765883030552,25.1985783,128.5,128.47,9.2]
[1765883030851,7.78223857,128.5,128.48,0.66]
[1765883031154,4.36924853,128.49,128.47,9.2]
[1765883031517,12.15202962,128.49,128.47,9.2]
[1765883033833,4.36924853,128.48,128.47,8.54]
[1765883034629,4.36924853,128.48,128.45,17.34994492]
[1765883034630,5.03924853,128.48,128.45,17.34994492]
[1765883034830,4.36924853,128.47,128.45,18.00994492]
[1765883036448,4.36924853,128.46,128.45,9.2]
[1765883036622,12.15319332,128.47,128.45,9.2]
[1765883036963,4.36924853,128.46,128.42,8.80994492]
[1765883037138,0.67,128.46,128.43,8.54]
[1765883037328,4.36924853,128.44,128.43,8.54]
[1765883038224,4.36924853,128.45,128.43,8.54]